[Event "*** Titled Tuesday Blitz"]
[Site "Chess.com"]
[Date "2021.02.09"]
[Round "6"]
[White "Gabrielian_Artur"]
[Black "kuban1991"]
[Result "1-0"]
[WhiteElo "2821"]
[BlackElo "2891"]
[TimeControl "180+1"]
[EndTime "11:08:51 PST"]
[Termination "Gabrielian_Artur won on time"]

1. c4 {[%clk 0:03:00.9]} 1... g6 {[%clk 0:02:59.7]} 2. Nc3 {[%clk 0:03:00.4]}
2... Bg7 {[%clk 0:03:00.6]} 3. g3 {[%clk 0:03:00.7]} 3... c5 {[%clk 0:03:01]} 4.
Bg2 {[%clk 0:02:59.8]} 4... Nc6 {[%clk 0:03:01.4]} 5. Nf3 {[%clk 0:02:59.6]}
5... e6 {[%clk 0:03:01.2]} 6. O-O {[%clk 0:02:58.3]} 6... Nge7 {[%clk
0:03:00.7]} 7. e3 {[%clk 0:02:56.6]} 7... Nf5 {[%clk 0:02:54.9]} 8. b3 {[%clk
0:02:56.3]} 8... O-O {[%clk 0:02:54.8]} 9. Bb2 {[%clk 0:02:56.4]} 9... d5 {[%clk
0:02:48.3]} 10. cxd5 {[%clk 0:02:55.5]} 10... exd5 {[%clk 0:02:49.2]} 11. Rc1
{[%clk 0:02:55.8]} 11... b6 {[%clk 0:02:41.3]} 12. d4 {[%clk 0:02:49.7]} 12...
Ba6 {[%clk 0:02:38]} 13. Re1 {[%clk 0:02:48]} 13... cxd4 {[%clk 0:02:25.2]} 14.
Ne2 {[%clk 0:02:46.7]} 14... Bxe2 {[%clk 0:02:16.3]} 15. Rxe2 {[%clk 0:02:44.5]}
15... Rc8 {[%clk 0:01:45]} 16. Rec2 {[%clk 0:02:44.1]} 16... Qd7 {[%clk
0:01:41.1]} 17. exd4 {[%clk 0:02:25.5]} 17... Nb4 {[%clk 0:01:16.5]} 18. Rxc8
{[%clk 0:02:21.7]} 18... Rxc8 {[%clk 0:01:17.4]} 19. Ne5 {[%clk 0:02:17.4]}
19... Rxc1 {[%clk 0:00:49.4]} 20. Bxc1 {[%clk 0:02:16.4]} 20... Bxe5 {[%clk
0:00:34]} 21. dxe5 {[%clk 0:02:16.7]} 21... Nxa2 {[%clk 0:00:34.2]} 22. Bb2
{[%clk 0:01:59.3]} 22... d4 {[%clk 0:00:30.4]} 23. Qd2 {[%clk 0:01:45.9]} 23...
a5 {[%clk 0:00:21.6]} 24. Bh3 {[%clk 0:01:41.4]} 24... Nb4 {[%clk 0:00:15.1]}
25. Bxf5 {[%clk 0:01:35.7]} 25... Qxf5 {[%clk 0:00:16]} 26. Bxd4 {[%clk
0:01:35.5]} 26... Qd7 {[%clk 0:00:13.4]} 27. Qc3 {[%clk 0:01:22]} 27... Nd5
{[%clk 0:00:11]} 28. Qc4 {[%clk 0:01:13.5]} 28... Qe6 {[%clk 0:00:11.3]} 29. h4
{[%clk 0:01:10.8]} 29... h5 {[%clk 0:00:11]} 30. Kg2 {[%clk 0:01:09.3]} 30...
Kg7 {[%clk 0:00:11.4]} 31. f3 {[%clk 0:01:02.1]} 31... Kh7 {[%clk 0:00:11.2]}
32. Kf2 {[%clk 0:01:00.7]} 32... Kg7 {[%clk 0:00:10.5]} 33. Bb2 {[%clk
0:00:48.5]} 33... Kh7 {[%clk 0:00:08.8]} 34. Qd4 {[%clk 0:00:46.9]} 34... Nb4
{[%clk 0:00:07.8]} 35. Kg2 {[%clk 0:00:44.8]} 35... b5 {[%clk 0:00:07]} 36. Bc3
{[%clk 0:00:40.3]} 36... Nc6 {[%clk 0:00:07.1]} 37. Qc5 {[%clk 0:00:40.4]} 37...
a4 {[%clk 0:00:05.8]} 38. bxa4 {[%clk 0:00:38.7]} 38... bxa4 {[%clk 0:00:06.7]}
39. Bb2 {[%clk 0:00:38.6]} 39... a3 {[%clk 0:00:05.9]} 40. Qxa3 {[%clk
0:00:38.6]} 40... Nxe5 {[%clk 0:00:06]} 41. Qc3 {[%clk 0:00:35.6]} 41... f6
{[%clk 0:00:06.1]} 42. Qc7+ {[%clk 0:00:35.5]} 42... Nf7 {[%clk 0:00:05.3]} 43.
Qc2 {[%clk 0:00:28.7]} 43... Kg7 {[%clk 0:00:05.4]} 44. Bd4 {[%clk 0:00:28.5]}
44... Qf5 {[%clk 0:00:04.8]} 45. Qc6 {[%clk 0:00:25.7]} 45... Ne5 {[%clk
0:00:01.7]} 46. Qb7+ {[%clk 0:00:23.7]} 46... Nf7 {[%clk 0:00:01.8]} 47. Qe7
{[%clk 0:00:23.2]} 1-0

[Event "*** Titled Tuesday Blitz"]
[Site "Chess.com"]
[Date "2021.02.09"]
[Round "6"]
[White "azikom"]
[Black "Onischuk_V"]
[Result "0-1"]
[WhiteElo "2650"]
[BlackElo "2824"]
[TimeControl "180+1"]
[EndTime "11:08:52 PST"]
[Termination "Onischuk_V won by resignation"]

1. d4 {[%clk 0:02:58.8]} 1... d6 {[%clk 0:03:00]} 2. Nf3 {[%clk 0:02:58.3]} 2...
g6 {[%clk 0:03:00]} 3. g3 {[%clk 0:02:58.3]} 3... Bg7 {[%clk 0:03:00.5]} 4. Bg2
{[%clk 0:02:59]} 4... Nf6 {[%clk 0:03:01.2]} 5. O-O {[%clk 0:02:59.5]} 5... O-O
{[%clk 0:03:01.9]} 6. Nbd2 {[%clk 0:02:59.3]} 6... Nc6 {[%clk 0:03:00.6]} 7. b3
{[%clk 0:02:54.2]} 7... e5 {[%clk 0:02:59.5]} 8. dxe5 {[%clk 0:02:54.2]} 8...
dxe5 {[%clk 0:02:57.5]} 9. Ba3 {[%clk 0:02:32.3]} 9... Re8 {[%clk 0:02:52.1]}
10. Nc4 {[%clk 0:02:24.6]} 10... e4 {[%clk 0:02:42.2]} 11. Qxd8 {[%clk
0:02:23.8]} 11... Rxd8 {[%clk 0:02:41.7]} 12. Ng5 {[%clk 0:02:23.4]} 12... h6
{[%clk 0:02:39.7]} 13. Nxe4 {[%clk 0:02:12.7]} 13... Nxe4 {[%clk 0:02:39.4]} 14.
Bxe4 {[%clk 0:02:13.2]} 14... Bxa1 {[%clk 0:02:39.2]} 15. Rxa1 {[%clk
0:02:11.7]} 15... Nd4 {[%clk 0:02:36.8]} 16. e3 {[%clk 0:01:59.7]} 16... Bf5
{[%clk 0:02:28.1]} 17. Bxb7 {[%clk 0:01:58.4]} 17... Nxc2 {[%clk 0:02:27.2]} 18.
Rc1 {[%clk 0:01:54.3]} 18... Rab8 {[%clk 0:02:20.7]} 19. Bf3 {[%clk 0:01:18.2]}
19... Nxa3 {[%clk 0:02:19.1]} 20. Nxa3 {[%clk 0:01:18.1]} 20... Rd2 {[%clk
0:02:18.3]} 21. g4 {[%clk 0:01:05.8]} 21... Be6 {[%clk 0:02:06.3]} 22. Nc2
{[%clk 0:01:01.7]} 22... c5 {[%clk 0:02:05.7]} 23. h3 {[%clk 0:01:01.2]} 23...
a5 {[%clk 0:01:53.4]} 24. Kf1 {[%clk 0:01:00.4]} 24... a4 {[%clk 0:01:48.7]} 25.
Ke1 {[%clk 0:00:59]} 25... Rd6 {[%clk 0:01:42.1]} 26. bxa4 {[%clk 0:00:52]}
26... Ra6 {[%clk 0:01:31.6]} 27. Bd1 {[%clk 0:00:50.5]} 27... Rxa4 {[%clk
0:01:19.7]} 28. Nd4 {[%clk 0:00:44.9]} 28... Rc4 {[%clk 0:01:19.8]} 29. Rxc4
{[%clk 0:00:44.4]} 29... Bxc4 {[%clk 0:01:19.3]} 30. Nb3 {[%clk 0:00:44.9]}
30... Rc8 {[%clk 0:01:15.3]} 31. Kd2 {[%clk 0:00:43.2]} 31... Kf8 {[%clk
0:01:15.1]} 32. Kc3 {[%clk 0:00:43]} 32... Be6 {[%clk 0:01:14.4]} 33. a4 {[%clk
0:00:39.8]} 33... Ke7 {[%clk 0:01:14.1]} 34. Be2 {[%clk 0:00:37.6]} 34... Kd6
{[%clk 0:01:13.6]} 35. Nd2 {[%clk 0:00:36.8]} 35... Rb8 {[%clk 0:01:08.3]} 36.
Bb5 {[%clk 0:00:36.4]} 36... Kc7 {[%clk 0:01:07.2]} 37. Ne4 {[%clk 0:00:35.9]}
37... Kb6 {[%clk 0:01:05]} 38. Nd2 {[%clk 0:00:32.4]} 38... Rd8 {[%clk
0:01:03.9]} 39. Nc4+ {[%clk 0:00:30.4]} 39... Bxc4 {[%clk 0:01:00.6]} 40. Bxc4
{[%clk 0:00:30.6]} 40... f6 {[%clk 0:01:00.5]} 41. Bd3 {[%clk 0:00:23.5]} 41...
g5 {[%clk 0:01:00.3]} 42. Bc2 {[%clk 0:00:20.7]} 42... Ka5 {[%clk 0:00:57.3]}
43. f4 {[%clk 0:00:19.2]} 43... gxf4 {[%clk 0:00:54.7]} 44. exf4 {[%clk
0:00:19.2]} 44... Rd4 {[%clk 0:00:55.3]} 45. f5 {[%clk 0:00:17.2]} 45... Rf4
{[%clk 0:00:55.4]} 46. Bd1 {[%clk 0:00:15.7]} 46... Kb6 {[%clk 0:00:52.9]} 47.
h4 {[%clk 0:00:13.9]} 47... Kc6 {[%clk 0:00:51.8]} 48. h5 {[%clk 0:00:13.2]}
48... Rf2 {[%clk 0:00:45.4]} 49. a5 {[%clk 0:00:12.7]} 49... Kb5 {[%clk
0:00:43.3]} 50. a6 {[%clk 0:00:11.3]} 50... Kxa6 {[%clk 0:00:43.2]} 51. Kc4
{[%clk 0:00:11.7]} 51... Kb6 {[%clk 0:00:43.4]} 52. Bb3 {[%clk 0:00:10.7]} 52...
Rd2 {[%clk 0:00:42]} 53. Kc3 {[%clk 0:00:08]} 53... Rd4 {[%clk 0:00:42]} 54. Be6
{[%clk 0:00:07.6]} 54... Rxg4 {[%clk 0:00:41.5]} 0-1

[Event "*** Titled Tuesday Blitz"]
[Site "Chess.com"]
[Date "2021.02.09"]
[Round "6"]
[White "Taran2004"]
[Black "LawrenceTrent"]
[Result "1-0"]
[WhiteElo "2469"]
[BlackElo "2595"]
[TimeControl "180+1"]
[EndTime "11:08:52 PST"]
[Termination "Taran2004 won by resignation"]

1. Nf3 {[%clk 0:03:00.9]} 1... g6 {[%clk 0:02:59.8]} 2. g3 {[%clk 0:03:00.7]}
2... Bg7 {[%clk 0:03:00.7]} 3. Bg2 {[%clk 0:03:01.3]} 3... d6 {[%clk 0:03:01.2]}
4. O-O {[%clk 0:03:01.7]} 4... Nf6 {[%clk 0:03:01.9]} 5. c4 {[%clk 0:03:02]}
5... O-O {[%clk 0:03:02.5]} 6. Nc3 {[%clk 0:03:02.1]} 6... c6 {[%clk 0:03:02.9]}
7. d4 {[%clk 0:03:01.9]} 7... Qb6 {[%clk 0:03:02.6]} 8. Qb3 {[%clk 0:03:01]}
8... Qxb3 {[%clk 0:03:00.1]} 9. axb3 {[%clk 0:03:01.9]} 9... Na6 {[%clk
0:02:59.6]} 10. Bg5 {[%clk 0:02:49.1]} 10... Bf5 {[%clk 0:02:56.6]} 11. Nh4
{[%clk 0:02:42.7]} 11... Bd7 {[%clk 0:02:55]} 12. e4 {[%clk 0:02:37.7]} 12... e5
{[%clk 0:02:51.9]} 13. Nf3 {[%clk 0:02:30.6]} 13... h6 {[%clk 0:02:45.3]} 14.
Be3 {[%clk 0:02:10.4]} 14... Ng4 {[%clk 0:02:44.6]} 15. h3 {[%clk 0:01:55.1]}
15... Nxe3 {[%clk 0:02:43.4]} 16. fxe3 {[%clk 0:01:56]} 16... Nb4 {[%clk
0:02:43.2]} 17. Rf2 {[%clk 0:01:55.4]} 17... a5 {[%clk 0:02:29]} 18. Na4 {[%clk
0:01:49.1]} 18... exd4 {[%clk 0:02:14.3]} 19. exd4 {[%clk 0:01:38.9]} 19... f5
{[%clk 0:02:10.4]} 20. Nb6 {[%clk 0:01:31.1]} 20... fxe4 {[%clk 0:02:08.5]} 21.
Nxd7 {[%clk 0:01:30.6]} 21... Rf7 {[%clk 0:01:57.9]} 22. Nfe5 {[%clk 0:01:04.8]}
22... Rxf2 {[%clk 0:01:55.4]} 23. Kxf2 {[%clk 0:01:05.7]} 23... dxe5 {[%clk
0:01:54.9]} 24. Nxe5 {[%clk 0:01:05]} 24... c5 {[%clk 0:01:45.9]} 25. Bxe4
{[%clk 0:01:02]} 25... cxd4 {[%clk 0:01:43.3]} 26. Nxg6 {[%clk 0:01:02]} 26...
d3 {[%clk 0:01:43.8]} 27. Rd1 {[%clk 0:01:00.7]} 27... Rd8 {[%clk 0:01:40.6]}
28. Ne7+ {[%clk 0:01:00.8]} 28... Kf7 {[%clk 0:01:39.4]} 29. Nd5 {[%clk
0:01:01.7]} 29... Bxb2 {[%clk 0:01:29.1]} 30. Nxb4 {[%clk 0:01:00.7]} 30... axb4
{[%clk 0:01:29]} 31. Rxd3 {[%clk 0:01:01.3]} 31... Bd4+ {[%clk 0:01:26.3]} 32.
Kf3 {[%clk 0:01:01]} 32... Kf6 {[%clk 0:01:19]} 33. Bxb7 {[%clk 0:00:59.5]}
33... Ke5 {[%clk 0:01:19.4]} 34. Bd5 {[%clk 0:00:53.3]} 34... Rf8+ {[%clk
0:01:19]} 35. Kg4 {[%clk 0:00:53.6]} 35... Rf5 {[%clk 0:00:58.5]} 36. h4 {[%clk
0:00:45.3]} 36... h5+ {[%clk 0:00:56.7]} 37. Kh3 {[%clk 0:00:45.5]} 37... Rf2
{[%clk 0:00:54.9]} 38. g4 {[%clk 0:00:40]} 38... hxg4+ {[%clk 0:00:45.8]} 39.
Kxg4 {[%clk 0:00:40.9]} 39... Rf4+ {[%clk 0:00:45.6]} 40. Kg5 {[%clk 0:00:36.9]}
40... Rf5+ {[%clk 0:00:37.2]} 41. Kg4 {[%clk 0:00:33.3]} 41... Rf4+ {[%clk
0:00:36.8]} 42. Kg5 {[%clk 0:00:32.6]} 42... Rf5+ {[%clk 0:00:37]} 43. Kg6
{[%clk 0:00:32.6]} 43... Rf6+ {[%clk 0:00:37.1]} 44. Kg7 {[%clk 0:00:32.8]}
44... Bc3 {[%clk 0:00:30.7]} 45. h5 {[%clk 0:00:31.2]} 45... Kf4 {[%clk
0:00:26.9]} 46. Rf3+ {[%clk 0:00:30.1]} 46... Kg5 {[%clk 0:00:27.3]} 47. Rxf6
{[%clk 0:00:27.4]} 47... Bxf6+ {[%clk 0:00:28.2]} 48. Kf7 {[%clk 0:00:28]} 48...
Bd4 {[%clk 0:00:27.6]} 49. Bf3 {[%clk 0:00:28.2]} 49... Kf4 {[%clk 0:00:25.8]}
50. Bd1 {[%clk 0:00:27.2]} 50... Ke3 {[%clk 0:00:26.2]} 51. h6 {[%clk
0:00:24.7]} 51... Kd2 {[%clk 0:00:26.7]} 52. Bg4 {[%clk 0:00:23.1]} 52... Kc2
{[%clk 0:00:27.1]} 53. Be6 {[%clk 0:00:23]} 53... Kxb3 {[%clk 0:00:24]} 54. c5+
{[%clk 0:00:23.4]} 54... Ka4 {[%clk 0:00:24.5]} 55. c6 {[%clk 0:00:23.8]} 55...
Be5 {[%clk 0:00:23.9]} 56. h7 {[%clk 0:00:23.8]} 56... Kb5 {[%clk 0:00:23.9]}
57. c7 {[%clk 0:00:23.8]} 57... Bxc7 {[%clk 0:00:24.8]} 58. h8=Q {[%clk
0:00:23.5]} 1-0

[Event "*** Titled Tuesday Blitz"]
[Site "Chess.com"]
[Date "2021.02.09"]
[Round "6"]
[White "Ladislav1969"]
[Black "RafalBRC"]
[Result "1-0"]
[WhiteElo "2316"]
[BlackElo "2080"]
[TimeControl "180+1"]
[EndTime "11:08:52 PST"]
[Termination "Ladislav1969 won on time"]

1. e4 {[%clk 0:03:00.9]} 1... e6 {[%clk 0:02:59.8]} 2. d4 {[%clk 0:03:00.2]}
2... d5 {[%clk 0:03:00.7]} 3. e5 {[%clk 0:03:00.8]} 3... c5 {[%clk 0:03:00.5]}
4. c3 {[%clk 0:03:01.7]} 4... Nc6 {[%clk 0:03:01.1]} 5. Nf3 {[%clk 0:03:02.6]}
5... Bd7 {[%clk 0:03:01.1]} 6. a3 {[%clk 0:03:02.3]} 6... c4 {[%clk 0:03:00.7]}
7. Nbd2 {[%clk 0:03:01.6]} 7... Na5 {[%clk 0:03:00.8]} 8. Be2 {[%clk 0:03:00.3]}
8... Ne7 {[%clk 0:03:00.9]} 9. Nf1 {[%clk 0:02:59]} 9... Nb3 {[%clk 0:02:58.9]}
10. Rb1 {[%clk 0:02:58.1]} 10... Nc6 {[%clk 0:02:59]} 11. N3d2 {[%clk
0:02:55.9]} 11... Nca5 {[%clk 0:02:58.9]} 12. Nxb3 {[%clk 0:02:54]} 12... Nxb3
{[%clk 0:02:59]} 13. Ne3 {[%clk 0:02:54.4]} 13... Ba4 {[%clk 0:02:58.8]} 14. O-O
{[%clk 0:02:52.5]} 14... Qd7 {[%clk 0:02:57]} 15. f4 {[%clk 0:02:47]} 15... g6
{[%clk 0:02:45.4]} 16. g4 {[%clk 0:02:20.8]} 16... Be7 {[%clk 0:02:44.6]} 17. f5
{[%clk 0:02:15.3]} 17... gxf5 {[%clk 0:02:44.6]} 18. gxf5 {[%clk 0:02:14.9]}
18... Rg8+ {[%clk 0:02:40.2]} 19. Kh1 {[%clk 0:02:14]} 19... Bg5 {[%clk
0:02:38]} 20. fxe6 {[%clk 0:02:06.8]} 20... Qxe6 {[%clk 0:01:28.2]} 21. Bg4
{[%clk 0:02:06.3]} 21... Qg6 {[%clk 0:01:28.2]} 22. Bf5 {[%clk 0:01:58.2]} 22...
Qh6 {[%clk 0:01:27.9]} 23. Ng4 {[%clk 0:01:52.4]} 23... Qh4 {[%clk 0:01:10.8]}
24. Bxg5 {[%clk 0:01:43.2]} 24... Rxg5 {[%clk 0:01:10.4]} 25. Nf6+ {[%clk
0:00:39.3]} 25... Kd8 {[%clk 0:01:09.9]} 26. Rf3 {[%clk 0:00:34.2]} 26... Bc6
{[%clk 0:00:18.4]} 27. Qe2 {[%clk 0:00:25.6]} 27... Kc7 {[%clk 0:00:16.5]} 28.
Rh3 {[%clk 0:00:24.7]} 28... Qf4 {[%clk 0:00:15.4]} 29. Rf1 {[%clk 0:00:24.4]}
29... Qd2 {[%clk 0:00:14.4]} 30. Qxd2 {[%clk 0:00:20.7]} 30... Nxd2 {[%clk
0:00:14]} 31. Rf2 {[%clk 0:00:20.9]} 31... Ne4 {[%clk 0:00:09.8]} 32. Bxe4
{[%clk 0:00:21]} 32... dxe4 {[%clk 0:00:09.9]} 33. d5 {[%clk 0:00:21.9]} 33...
Bd7 {[%clk 0:00:06.9]} 34. Rxh7 {[%clk 0:00:20.8]} 34... Rxe5 {[%clk 0:00:06.7]}
35. Rxf7 {[%clk 0:00:20.1]} 35... Rae8 {[%clk 0:00:06.3]} 36. Rxd7+ {[%clk
0:00:19.2]} 36... Kb6 {[%clk 0:00:05.8]} 37. Rd6+ {[%clk 0:00:19]} 37... Kc5
{[%clk 0:00:05.6]} 38. Re6 {[%clk 0:00:17.4]} 38... R5xe6 {[%clk 0:00:04.7]} 39.
dxe6 {[%clk 0:00:17.3]} 39... Rxe6 {[%clk 0:00:05.2]} 40. h4 {[%clk 0:00:15.6]}
40... e3 {[%clk 0:00:05.2]} 41. Re2 {[%clk 0:00:10.6]} 41... Rxf6 {[%clk
0:00:04.8]} 42. Rxe3 {[%clk 0:00:11.3]} 42... Rh6 {[%clk 0:00:04.5]} 43. Re4
{[%clk 0:00:10.7]} 43... Kb5 {[%clk 0:00:04.1]} 44. Kh2 {[%clk 0:00:10.3]} 1-0

[Event "*** Titled Tuesday Blitz"]
[Site "Chess.com"]
[Date "2021.02.09"]
[Round "6"]
[White "Astaneh"]
[Black "HackingKid98"]
[Result "1-0"]
[WhiteElo "2655"]
[BlackElo "2476"]
[TimeControl "180+1"]
[EndTime "11:08:53 PST"]
[Termination "Astaneh won on time"]

1. d4 {[%clk 0:03:00.9]} 1... Nf6 {[%clk 0:02:57.7]} 2. Bf4 {[%clk 0:02:56.6]}
2... c5 {[%clk 0:02:55.9]} 3. d5 {[%clk 0:02:55.3]} 3... b5 {[%clk 0:02:51.3]}
4. c4 {[%clk 0:02:45.9]} 4... g6 {[%clk 0:02:46.1]} 5. e3 {[%clk 0:02:25.1]}
5... Bb7 {[%clk 0:02:37.1]} 6. Nc3 {[%clk 0:02:16.5]} 6... b4 {[%clk 0:02:27.7]}
7. Nce2 {[%clk 0:02:01]} 7... Bg7 {[%clk 0:02:25]} 8. Ng3 {[%clk 0:01:59.4]}
8... O-O {[%clk 0:02:00.1]} 9. Nf3 {[%clk 0:01:59.7]} 9... e6 {[%clk 0:01:54.2]}
10. Bd6 {[%clk 0:01:53.3]} 10... Re8 {[%clk 0:01:53.3]} 11. Bxc5 {[%clk
0:01:48.8]} 11... exd5 {[%clk 0:01:29.7]} 12. Bd4 {[%clk 0:01:49]} 12... Nc6
{[%clk 0:01:20]} 13. cxd5 {[%clk 0:01:38.1]} 13... Nxd4 {[%clk 0:01:16.2]} 14.
Nxd4 {[%clk 0:01:39]} 14... Nxd5 {[%clk 0:01:12.7]} 15. Be2 {[%clk 0:01:36.7]}
15... Qe7 {[%clk 0:01:08.6]} 16. Bf3 {[%clk 0:01:32]} 16... Nxe3 {[%clk
0:00:52]} 17. fxe3 {[%clk 0:01:29.3]} 17... Qxe3+ {[%clk 0:00:46.3]} 18. Nge2
{[%clk 0:01:14.8]} 18... Bxd4 {[%clk 0:00:34.3]} 19. Bxb7 {[%clk 0:01:14.3]}
19... Rab8 {[%clk 0:00:16.2]} 20. Ba6 {[%clk 0:01:01.6]} 20... Qf2+ {[%clk
0:00:15.6]} 21. Kd2 {[%clk 0:01:01]} 21... Bxb2 {[%clk 0:00:13.3]} 22. Rb1
{[%clk 0:00:45.4]} 22... Bc3+ {[%clk 0:00:12.3]} 23. Kc2 {[%clk 0:00:45.6]}
23... Rb6 {[%clk 0:00:11.3]} 24. Rf1 {[%clk 0:00:36.1]} 24... Qe3 {[%clk
0:00:09.5]} 25. Bc4 {[%clk 0:00:32.8]} 25... Qe4+ {[%clk 0:00:09.4]} 26. Qd3
{[%clk 0:00:24.3]} 26... d5 {[%clk 0:00:07.1]} 27. Qxe4 {[%clk 0:00:17.1]} 27...
Rxe4 {[%clk 0:00:08]} 28. Bd3 {[%clk 0:00:15.9]} 28... Re3 {[%clk 0:00:08.1]}
29. Nxc3 {[%clk 0:00:14.8]} 29... bxc3 {[%clk 0:00:06.4]} 30. Rxb6 {[%clk
0:00:15.7]} 30... axb6 {[%clk 0:00:06.8]} 31. Kxc3 {[%clk 0:00:16.3]} 31... Re7
{[%clk 0:00:05.8]} 32. Kd4 {[%clk 0:00:08.5]} 32... Ra7 {[%clk 0:00:05.2]} 33.
Rf2 {[%clk 0:00:08.5]} 33... Ra5 {[%clk 0:00:04.7]} 34. Rb2 {[%clk 0:00:08.4]}
34... Kg7 {[%clk 0:00:03.7]} 35. Bb5 {[%clk 0:00:08.7]} 35... f5 {[%clk
0:00:02.5]} 36. a4 {[%clk 0:00:08.6]} 36... Kf6 {[%clk 0:00:02.2]} 37. Kxd5
{[%clk 0:00:09]} 37... Ra8 {[%clk 0:00:02.4]} 38. Kc6 {[%clk 0:00:08.1]} 38...
Rd8 {[%clk 0:00:02.8]} 39. Kxb6 {[%clk 0:00:08]} 39... Rd6+ {[%clk 0:00:02.6]}
40. Bc6 {[%clk 0:00:08.4]} 40... Rd4 {[%clk 0:00:02.2]} 41. a5 {[%clk
0:00:08.6]} 41... Rb4+ {[%clk 0:00:02.5]} 42. Rxb4 {[%clk 0:00:07.6]} 1-0

[Event "*** Titled Tuesday Blitz"]
[Site "Chess.com"]
[Date "2021.02.09"]
[Round "6"]
[White "Unknown_IM"]
[Black "Piccadilly123"]
[Result "1-0"]
[WhiteElo "2358"]
[BlackElo "2183"]
[TimeControl "180+1"]
[EndTime "11:08:54 PST"]
[Termination "Unknown_IM won by checkmate"]

1. e4 {[%clk 0:03:00.9]} 1... e6 {[%clk 0:02:59.7]} 2. d4 {[%clk 0:02:59.6]}
2... d5 {[%clk 0:02:59.9]} 3. e5 {[%clk 0:02:59.8]} 3... c5 {[%clk 0:02:59.4]}
4. c3 {[%clk 0:02:59.4]} 4... Nc6 {[%clk 0:02:59.4]} 5. Nf3 {[%clk 0:02:59.4]}
5... Qb6 {[%clk 0:02:58.9]} 6. a3 {[%clk 0:02:58.3]} 6... c4 {[%clk 0:02:58.7]}
7. Nbd2 {[%clk 0:02:57.7]} 7... Bd7 {[%clk 0:02:57.7]} 8. g3 {[%clk 0:02:55.4]}
8... Na5 {[%clk 0:02:57.6]} 9. Rb1 {[%clk 0:02:54.9]} 9... Ne7 {[%clk
0:02:51.9]} 10. h4 {[%clk 0:02:53.2]} 10... Nc8 {[%clk 0:02:49]} 11. Bh3 {[%clk
0:02:53.2]} 11... Qc7 {[%clk 0:02:48.5]} 12. O-O {[%clk 0:02:52.8]} 12... Nb6
{[%clk 0:02:49]} 13. Ne1 {[%clk 0:02:53]} 13... O-O-O {[%clk 0:02:42]} 14. f4
{[%clk 0:02:51.1]} 14... g6 {[%clk 0:02:36.9]} 15. Ndf3 {[%clk 0:02:45.7]} 15...
h5 {[%clk 0:02:33.8]} 16. Be3 {[%clk 0:02:42.4]} 16... Ba4 {[%clk 0:02:33.2]}
17. Qe2 {[%clk 0:02:41.6]} 17... Be7 {[%clk 0:02:17]} 18. Ng5 {[%clk 0:02:40.1]}
18... Bf8 {[%clk 0:02:10.1]} 19. Kg2 {[%clk 0:02:06]} 19... Re8 {[%clk
0:02:08.6]} 20. Bf2 {[%clk 0:01:51.8]} 20... Bh6 {[%clk 0:02:07.7]} 21. g4
{[%clk 0:01:46.1]} 21... hxg4 {[%clk 0:01:56.2]} 22. Bxg4 {[%clk 0:01:32.8]}
22... Nb3 {[%clk 0:01:56]} 23. Nef3 {[%clk 0:01:22.3]} 23... Kb8 {[%clk
0:01:50.9]} 24. Bg3 {[%clk 0:01:17]} 24... Nc8 {[%clk 0:01:23.9]} 25. Rh1 {[%clk
0:01:13]} 25... b5 {[%clk 0:01:19.8]} 26. h5 {[%clk 0:01:12.6]} 26... gxh5
{[%clk 0:01:18]} 27. Rxh5 {[%clk 0:01:12.2]} 27... Bxg5 {[%clk 0:01:17.4]} 28.
Nxg5 {[%clk 0:01:12.2]} 28... Rxh5 {[%clk 0:01:15]} 29. Bxh5 {[%clk 0:01:12.6]}
29... Rf8 {[%clk 0:01:12.8]} 30. Rh1 {[%clk 0:01:11.1]} 30... a5 {[%clk
0:01:11.8]} 31. Bg4 {[%clk 0:01:10.2]} 31... b4 {[%clk 0:01:01.8]} 32. Rh7
{[%clk 0:01:05.3]} 32... bxa3 {[%clk 0:00:53.5]} 33. bxa3 {[%clk 0:01:04.1]}
33... Bd7 {[%clk 0:00:47.2]} 34. Rxf7 {[%clk 0:00:36.4]} 34... Rxf7 {[%clk
0:00:44.4]} 35. Nxf7 {[%clk 0:00:37.3]} 35... Ne7 {[%clk 0:00:30.8]} 36. f5
{[%clk 0:00:33.3]} 36... Ka7 {[%clk 0:00:10.7]} 37. f6 {[%clk 0:00:32.4]} 37...
Ng6 {[%clk 0:00:09.7]} 38. Bh5 {[%clk 0:00:27.5]} 38... Nf8 {[%clk 0:00:09.5]}
39. Qg4 {[%clk 0:00:24.9]} 39... Nc1 {[%clk 0:00:09.3]} 40. Qg8 {[%clk
0:00:23.3]} 40... Qc8 {[%clk 0:00:08.9]} 41. Nd6 {[%clk 0:00:21]} 41... Qd8
{[%clk 0:00:07.6]} 42. Be8 {[%clk 0:00:18.4]} 42... Bxe8 {[%clk 0:00:06.9]} 43.
Qxf8 {[%clk 0:00:18]} 43... Qc7 {[%clk 0:00:07.4]} 44. Qxe8 {[%clk 0:00:17.1]}
44... Qh7 {[%clk 0:00:07.9]} 45. Qe7+ {[%clk 0:00:17.2]} 45... Qxe7 {[%clk
0:00:08]} 46. fxe7 {[%clk 0:00:18.1]} 46... Nd3 {[%clk 0:00:06.7]} 47. e8=Q
{[%clk 0:00:19]} 47... a4 {[%clk 0:00:06.6]} 48. Qd7+ {[%clk 0:00:17.8]} 48...
Ka6 {[%clk 0:00:05.8]} 49. Qb7+ {[%clk 0:00:18.3]} 49... Ka5 {[%clk 0:00:06.4]}
50. Qb5# {[%clk 0:00:19.2]} 1-0